{"text_format":"3","workbook":"xlsx","n_sheets":4,"sheets":["Začíname","Výdavky","Príjmy","Súhrn ziskov a strát"],"not_rendered":{"charts":1},"read":"whole","date_system":"1900"}

{"sheet":"Začíname","index":0,"n_rows":8,"n_cols":2,"rows_kept":8}
[null,"INFORMÁCIE O TEJTO ŠABLÓNE"]
[null,"Pomocou tohto zošita rozpočtu podujatia môžete sledovať vzniknuté výdavky a získané príjmy z podujatia."]
[null,"Vyplňte názov podujatia a zadajte podrobnosti do tabuliek v hárkoch Výdavky a Príjmy."]
[null,"Celkové výdavky a celkové príjmy sa vypočítajú automaticky."]
[null,"Súhrn ziskov a strát a graf v hárku Súhrn ziskov a strát sa aktualizujú automaticky."]
[null,"Poznámka: "]
[null,"V každom hárku sú v stĺpci A uvedené ďalšie pokyny. Tento text je zámerne skrytý. Ak chcete text odstrániť, vyberte stĺpec A a potom stlačte kláves ODSTRÁNIŤ. Ak chcete text zobraziť, vyberte stĺpec A a potom zmeňte farbu písma."]
[null,"Ak chcete získať ďalšie informácie o tabuľkách, v tabuľke stlačte kláves SHIFT a potom kláves F10, vyberte možnosť TABUĽKA a potom vyberte položku ALTERNATÍVNY TEXT."]

{"sheet":"Výdavky","index":1,"n_rows":32,"n_cols":8,"rows_kept":32,"merged":[[0,1,0,5],[2,1,3,1]]}
["Do príslušných tabuliek tohto hárka zadajte odhadované a skutočné výdavky pre jednotlivé kategórie a úpravou textu Názov podujatia v bunke D1 prispôsobte nadpis tohto hárka a ostatných hárkov. V bunke H1 je uvedený podnadpis tohto hárka. V bunkách v tomto stĺpci na nachádzajú užitočné pokyny na používanie tohto hárka. Ďalší pokyn je v bunke A3.","Rozpočet podujatia Názov podujatia",{"$nulls":5},"VÝDAVKY"]
[]
["V bunke napravo je označenie Celkové výdavky, v bunke G3 je označenie Odhadované a v bunke H3 je označenie Skutočné.","CELKOVÉ VÝDAVKY",{"$nulls":4},"Odhadované","Skutočné"]
["Celkové odhadované výdavky v bunke G4 a celkové skutočné výdavky v bunke H4 sa vypočítajú automaticky. Ďalší pokyn je v bunke A6.",{"$nulls":5},{"$f":"SUM(C11,C19,C25,C32,G11,G19,G24)","v":{"v":882,"d":"882.00 EUR"}},{"$f":"SUM(D11,D19,D25,D32,H11,H19,H24)","v":{"v":333,"d":"333.00 EUR"}}]
[]
["Do tabuľky začínajúcej v bunke napravo zadajte výdavky na priestory a do tabuľky začínajúcej v bunke F6 zadajte výdavky na občerstvenie. Ďalší pokyn je v bunke A13.","Priestory","Odhadované","Skutočné",null,"Občerstvenie","Odhadované","Skutočné"]
[null,"Poplatky za miestnosť a sálu",{"v":500,"d":"500.00 EUR"},null,null,"Strava"]
[null,"Personál priestorov",{"$nulls":3},"Nápoje",{"v":20,"d":"20.00 EUR"}]
[null,"Vybavenie",{"$nulls":3},"Obrusy",null,{"v":20,"d":"20.00 EUR"}]
[null,"Stoly a stoličky",{"$nulls":3},"Personál a výpomoc"]
[null,"Celková hodnota",{"$f":"SUBTOTAL(109,VýdavkyNaPriestory[Odhadované])","v":{"v":500,"d":"500.00 EUR"}},{"$f":"SUBTOTAL(109,VýdavkyNaPriestory[Skutočné])","v":{"v":0,"d":"0.00 EUR"}},null,"Celková hodnota",{"$f":"SUBTOTAL(109,VýdavkyNaObčerstvenie[Odhadované])","v":{"v":20,"d":"20.00 EUR"}},{"$f":"SUBTOTAL(109,VýdavkyNaObčerstvenie[Skutočné])","v":{"v":20,"d":"20.00 EUR"}}]
[]
["Do tabuľky začínajúcej v bunke napravo zadajte výdavky na výzdobu a do tabuľky začínajúcej v bunke F13 zadajte výdavky na program. Ďalší pokyn je v bunke A21.","Výzdoba","Odhadované","Skutočné",null,"Program","Odhadované","Skutočné"]
[null,"Kvety",{"v":200,"d":"200.00 EUR"},{"v":300,"d":"300.00 EUR"},null,"Vystupujúci"]
[null,"Sviečky",{"$nulls":3},"Moderátori",{"v":30,"d":"30.00 EUR"}]
[null,"Osvetlenie",{"$nulls":3},"Cestovné"]
[null,"Balóny",{"$nulls":3},"Hotel"]
[null,"Papierové materiály",{"$nulls":3},"Iné"]
[null,"Celková hodnota",{"$f":"SUBTOTAL(109,VýdavkyNaVýzdoba[Odhadované])","v":{"v":200,"d":"200.00 EUR"}},{"$f":"SUBTOTAL(109,VýdavkyNaVýzdoba[Skutočné])","v":{"v":300,"d":"300.00 EUR"}},null,"Celková hodnota",{"$f":"SUBTOTAL(109,VýdavkyNaProgram[Odhadované])","v":{"v":30,"d":"30.00 EUR"}},{"$f":"SUBTOTAL(109,VýdavkyNaProgram[Skutočné])","v":{"v":0,"d":"0.00 EUR"}}]
[]
["Do tabuľky začínajúcej v bunke napravo zadajte výdavky na propagácia a do tabuľky začínajúcej v bunke F21 zadajte výdavky na ceny. Ďalší pokyn sa nachádza v bunke A27.","Propagácia","Odhadované","Skutočné",null,"Ceny","Odhadované","Skutočné"]
[null,"Grafické práce",{"$nulls":3},"Stuhy, plakety a trofeje"]
[null,"Fotokopírovanie a tlač",{"v":20,"d":"20.00 EUR"},null,null,"Dary",{"v":100,"d":"100.00 EUR"}]
[null,"Poštovné",{"$nulls":3},"Celková hodnota",{"$f":"SUBTOTAL(109,VýdavkyNaCeny[Odhadované])","v":{"v":100,"d":"100.00 EUR"}},{"$f":"SUBTOTAL(109,VýdavkyNaCeny[Skutočné])","v":{"v":0,"d":"0.00 EUR"}}]
[null,"Celková hodnota",{"$f":"SUBTOTAL(109,VýdavkyNaPropagácia[Odhadované])","v":{"v":20,"d":"20.00 EUR"}},{"$f":"SUBTOTAL(109,VýdavkyNaPropagácia[Skutočné])","v":{"v":0,"d":"0.00 EUR"}}]
[]
["Do tabuľky začínajúcej v bunke napravo zadajte rôzne výdavky.","Rôzne","Odhadované","Skutočné"]
[null,"Telefón",null,{"v":13,"d":"13.00 EUR"}]
[null,"Doprava",{"v":12,"d":"12.00 EUR"}]
[null,"Kancelárske potreby"]
[null,"Faxové služby"]
[null,"Celková hodnota",{"$f":"SUBTOTAL(109,RôzneVýdavky[Odhadované])","v":{"v":12,"d":"12.00 EUR"}},{"$f":"SUBTOTAL(109,RôzneVýdavky[Skutočné])","v":{"v":13,"d":"13.00 EUR"}}]

{"sheet":"Príjmy","index":2,"n_rows":29,"n_cols":7,"rows_kept":29,"merged":[[0,1,0,4],[2,1,3,1]]}
["Do príslušných tabuliek tohto hárka zadajte odhadované a skutočné príjmy pre jednotlivé kategórie. V bunkách napravo sa automaticky aktualizuje nadpis hárka. V bunke G1 je podnadpis. V bunkách v tomto stĺpci na nachádzajú užitočné pokyny na používanie tohto hárka. Ďalší pokyn je v bunke A3.",{"$f":"Výdavky!B1","v":"Rozpočet podujatia Názov podujatia"},{"$nulls":4},"PRÍJMY"]
[]
["V bunke napravo je označenie Celkové príjmy, v bunke F3 je označenie Odhadované a v bunke G3 je označenie Skutočné.","CELKOVÉ PRÍJMY",{"$nulls":3},"Odhadované","Skutočné"]
["Celkové odhadované príjmy v bunke F4 a celkové skutočné príjmy v bunke G4 sa vypočítajú automaticky.",{"$nulls":4},{"$f":"SUM(Vstupenky[[#Totals],[Odhadovaná príjmy]],ReklamyVPrograme[[#Totals],[Odhadovaná príjmy]],VystavovateliaAPredajcovia[[#Totals],[Odhadovaná príjmy]],PredajPoložiek[[#Totals],[Odhadovaná príjmy]])","v":{"v":1936,"d":"1,936.00 EUR"}},{"$f":"SUM(Vstupenky[[#Totals],[Skutočné príjmy]],ReklamyVPrograme[[#Totals],[Skutočné príjmy]],VystavovateliaAPredajcovia[[#Totals],[Skutočné príjmy]],PredajPoložiek[[#Totals],[Skutočné príjmy]])","v":{"v":1831,"d":"1,831.00 EUR"}}]
["V bunke napravo je označenie Vstupenky.","VSTUPENKY"]
["Do tabuľky začínajúcej v bunke napravo zadajte odhadovaný a skutočný počet vstupeniek a ceny vstupeniek. Odhadované a skutočné príjmy zo vstupeniek sa vypočítajú automaticky. Ďalší pokyn je v bunke A11.","Odhadovaný počet","Skutočný počet","Typ","Cena","Odhadovaná príjmy","Skutočné príjmy"]
[null,300,278,"Dospelí",{"v":5,"d":"5.00 EUR"},{"$f":"B7*E7","v":{"v":1500,"d":"1,500.00 EUR"}},{"$f":"C7*E7","v":{"v":1390,"d":"1,390.00 EUR"}}]
[null,197,195,"Deti",{"v":2,"d":"2.00 EUR"},{"$f":"B8*E8","v":{"v":394,"d":"394.00 EUR"}},{"$f":"C8*E8","v":{"v":390,"d":"390.00 EUR"}}]
[null,42,51,"Iné",{"v":1,"d":"1.00 EUR"},{"$f":"B9*E9","v":{"v":42,"d":"42.00 EUR"}},{"$f":"C9*E9","v":{"v":51,"d":"51.00 EUR"}}]
[null,"Celková hodnota",{"$nulls":3},{"$f":"SUBTOTAL(109,Vstupenky[Odhadovaná príjmy])","v":{"v":1936,"d":"1,936.00 EUR"}},{"$f":"SUBTOTAL(109,Vstupenky[Skutočné príjmy])","v":{"v":1831,"d":"1,831.00 EUR"}}]
["V bunke napravo je označenie Reklamy v programe.","REKLAMY V PROGRAME"]
["Do tabuľky začínajúcej v bunke napravo zadajte odhadovaný a skutočný počet reklám v programe a ceny za reklamy. Odhadované a skutočné príjmy z reklamy sa vypočítajú automaticky. Ďalší pokyn sa nachádza v bunke A17.","Odhadovaný počet","Skutočný počet","Typ","Cena","Odhadovaná príjmy","Skutočné príjmy"]
[null,12,null,"Titulné strany",null,{"$f":"B13*E13","v":{"v":0,"d":"0.00 EUR"}},{"$f":"C13*E13","v":{"v":0,"d":"0.00 EUR"}}]
[null,null,158,"Polstrany",null,{"$f":"B14*E14","v":{"v":0,"d":"0.00 EUR"}},{"$f":"C14*E14","v":{"v":0,"d":"0.00 EUR"}}]
[null,4,null,"Štvrťstrany",null,{"$f":"B15*E15","v":{"v":0,"d":"0.00 EUR"}},{"$f":"C15*E15","v":{"v":0,"d":"0.00 EUR"}}]
[null,"Celková hodnota",{"$nulls":3},{"$f":"SUBTOTAL(109,ReklamyVPrograme[Odhadovaná príjmy])","v":{"v":0,"d":"0.00 EUR"}},{"$f":"SUBTOTAL(109,ReklamyVPrograme[Skutočné príjmy])","v":{"v":0,"d":"0.00 EUR"}}]
["V bunke napravo je označenie Vystavovatelia a predajcovia.","VYSTAVOVATELIA A PREDAJCOVIA"]
["Do tabuľky začínajúcej v bunke napravo zadajte odhadovaný a skutočný počet vystavovateľov a predajcov a ceny za stánky. Odhadované a skutočné príjmy sa vypočítajú automaticky. Ďalší pokyn sa nachádza v bunke A23.","Odhadovaný počet","Skutočný počet","Typ","Cena","Odhadovaná príjmy","Skutočné príjmy"]
[null,23,null,"Veľké stánky",null,{"$f":"B19*E19","v":{"v":0,"d":"0.00 EUR"}},{"$f":"C19*E19","v":{"v":0,"d":"0.00 EUR"}}]
[null,354,null,"Stredne veľké stánky",null,{"$f":"B20*E20","v":{"v":0,"d":"0.00 EUR"}},{"$f":"C20*E20","v":{"v":0,"d":"0.00 EUR"}}]
[null,56,null,"Malé stánky",null,{"$f":"B21*E21","v":{"v":0,"d":"0.00 EUR"}},{"$f":"C21*E21","v":{"v":0,"d":"0.00 EUR"}}]
[null,"Celková hodnota",{"$nulls":3},{"$f":"SUBTOTAL(109,VystavovateliaAPredajcovia[Odhadovaná príjmy])","v":{"v":0,"d":"0.00 EUR"}},{"$f":"SUBTOTAL(109,VystavovateliaAPredajcovia[Skutočné príjmy])","v":{"v":0,"d":"0.00 EUR"}}]
["V bunke napravo je označenie Predaj položiek.","PREDAJ POLOŽIEK"]
["Do tabuľky začínajúcej v bunke napravo zadajte odhadovaný a skutočný počet predaných položiek a ceny za položky. Odhadované a skutočné príjmy sa vypočítajú automaticky.","Odhadovaný počet","Skutočný počet","Typ","Cena","Odhadovaná príjmy","Skutočné príjmy"]
[{"$nulls":3},"Položky",null,{"$f":"B25*E25","v":{"v":0,"d":"0.00 EUR"}},{"$f":"C25*E25","v":{"v":0,"d":"0.00 EUR"}}]
[null,123,null,"Položky",null,{"$f":"B26*E26","v":{"v":0,"d":"0.00 EUR"}},{"$f":"C26*E26","v":{"v":0,"d":"0.00 EUR"}}]
[{"$nulls":3},"Položky",null,{"$f":"B27*E27","v":{"v":0,"d":"0.00 EUR"}},{"$f":"C27*E27","v":{"v":0,"d":"0.00 EUR"}}]
[null,13,null,"Položky",null,{"$f":"B28*E28","v":{"v":0,"d":"0.00 EUR"}},{"$f":"C28*E28","v":{"v":0,"d":"0.00 EUR"}}]
[null,"Celková hodnota",{"$nulls":3},{"$f":"SUBTOTAL(109,PredajPoložiek[Odhadovaná príjmy])","v":{"v":0,"d":"0.00 EUR"}},{"$f":"SUBTOTAL(109,PredajPoložiek[Skutočné príjmy])","v":{"v":0,"d":"0.00 EUR"}}]

{"sheet":"Súhrn ziskov a strát","index":3,"n_rows":8,"n_cols":7,"rows_kept":8,"merged":[[0,1,0,4],[2,4,11,6]]}
["Súhrn zisku a straty a graf zobrazujúci celkové príjmy a výdavky v tomto hárku sa aktualizujú automaticky. V bunkách napravo sa automaticky aktualizuje nadpis hárka. V bunkách G1 a G2 je podnadpis. V bunkách v tomto stĺpci na nachádzajú užitočné pokyny na používanie tohto hárka. Ďalší pokyn je v bunke A3.",{"$f":"Výdavky!B1","v":"Rozpočet podujatia Názov podujatia"},{"$nulls":4},"SÚHRN"]
[{"$nulls":6},"zisku a straty"]
["V bunke E3 je pruhový graf porovnávajúci odhadované príjmy a výdavky so skutočnými príjmami a výdavkami.",{"$nulls":3},"V tejto bunke je pruhový graf zobrazujúci porovnanie odhadovaných príjmov a výdavkov so skutočnými príjmami a výdavkami."]
["Tabuľka so súhrnom rozpočtu začínajúca v bunke napravo sa aktualizuje automaticky. Ďalší pokyn je v bunke A8."," Spolu","Odhadované","Skutočné"]
[null,"Celkové príjmy",{"$f":"Príjmy!F4","v":{"v":1936,"d":"1,936.00 EUR"}},{"$f":"Príjmy!G4","v":{"v":1831,"d":"1,831.00 EUR"}}]
[null,"Celkové výdavky",{"$f":"Výdavky!G4","v":{"v":882,"d":"882.00 EUR"}},{"$f":"Výdavky!H4","v":{"v":333,"d":"333.00 EUR"}}]
[]
["Celkový odhadovaný zisk alebo strata v bunke C8 a celkový skutočný zisk alebo strata v bunke D8 sa vypočítajú automaticky.","Celkový zisk (alebo strata)",{"$f":"C5-C6","v":{"v":1054,"d":"1,054.00 EUR"}},{"$f":"D5-D6","v":{"v":1498,"d":"1,498.00 EUR"}}]